bitfinex/quotes_SOLUSD_20250822
["timestamp","ask_amount","ask_price","bid_price","bid_amount"]
[1755865940343,44.2,178.52,178.51,10.7540294]
[1755865941240,45.6941386,178.52,178.51,5.66186403]
[1755865941415,45.6941386,178.52,178.51,0.06]
[1755865942016,45.6941386,178.52,178.51,5.15216537]
[1755865942736,0.7741386,178.52,178.51,5.15216537]
[1755865942939,44.9741386,178.52,178.51,5.15216537]
[1755865943242,45.6941386,178.52,178.51,5.15216537]
[1755865943443,45.6941386,178.52,178.51,0.06]
[1755865944324,44.9741386,178.52,178.51,5.15216537]
[1755865945246,45.6941386,178.52,178.51,5.15216537]
[1755865945538,45.6941386,178.52,178.51,10.75409243]
[1755865945743,45.6941386,178.52,178.51,5.15216537]
[1755865946241,45.6941386,178.52,178.51,10.75409243]
[1755865947927,45.6941386,178.52,178.51,5.15216537]
[1755865948650,45.6941386,178.52,178.51,10.75409243]
[1755865948947,45.6941386,178.52,178.51,5.15216537]
[1755865949643,45.6941386,178.52,178.51,0.06]
[1755865950656,50.78630397,178.52,178.51,0.06]
[1755865950949,56.38791723,178.52,178.51,0.06]
[1755865951826,60.06734,178.52,178.51,0.06]
[1755865952732,60.06734,178.52,178.49,0.06]
[1755865952733,133.0541386,178.5,178.49,0.06]
[1755865953130,133.7741386,178.5,178.49,0.06]
[1755865953353,138.86630397,178.5,178.49,0.06]
[1755865953879,138.86630397,178.5,178.47,0.06]
[1755865953880,26.7741386,178.48,178.47,0.06]
[1755865954031,26.7741386,178.48,178.44,2.246749]
[1755865954032,5.86630397,178.45,178.44,2.246749]
[1755865954351,45.0741386,178.45,178.44,2.246749]
[1755865954650,0.7741386,178.43,178.42,0.1]
[1755865954859,45.0741386,178.43,178.42,0.1]
[1755865955042,50.88630397,178.43,178.42,0.1]
[1755865955927,6.58630397,178.43,178.42,0.1]
[1755865956141,1.4941386,178.43,178.42,0.1]
[1755865956353,6.58630397,178.43,178.42,0.1]
[1755865956654,51.39857731,178.43,178.42,0.1]
[1755865956832,0.7741386,178.43,178.42,0.1]
[1755865957031,45.0941386,178.43,178.42,0.1]
[1755865957228,45.8141386,178.43,178.42,0.1]
[1755865958354,50.90630397,178.43,178.42,0.1]
[1755865958560,0.7741386,178.43,178.42,0.1]
[1755865958881,45.0941386,178.43,178.42,5.19216537]
[1755865959156,45.0941386,178.43,178.35,2.247759]
[1755865959157,10.0,178.33,178.31,0.66]
[1755865959358,54.32,178.34,178.33,0.66]
[1755865959668,10.0,178.36,178.33,5.75216537]
[1755865959866,10.0,178.35,178.34,0.66]
[1755865960162,10.0,178.34,178.33,5.60758145]
[1755865960351,10.0,178.36,178.33,10.69974682]
[1755865960535,10.0,178.34,178.33,5.60758145]
[1755865960735,10.0,178.34,178.33,6.26758145]
[1755865960961,10.0,178.34,178.33,11.35974682]
[1755865961259,10.0,178.33,178.32,5.704822]
[1755865961467,10.0,178.32,178.25,19.20569218]
[1755865961643,5.60673272,178.36,178.27,13.59559401]
[1755865961644,10.0,178.3,178.27,13.59559401]
[1755865961962,10.0,178.3,178.26,0.66]
[1755865961963,10.0,178.3,178.26,16.863881]
[1755865962165,0.72,178.34,178.26,16.863881]
[1755865962166,10.0,178.27,178.26,16.863881]
[1755865962533,10.72,178.27,178.26,16.863881]
[1755865962873,10.0,178.25,178.24,0.1]
[1755865963239,10.0,178.26,178.24,6.37041292]
[1755865963460,10.0,178.34,178.28,26.0]
[1755865963777,54.66,178.33,178.29,0.66]
[1755865963957,10.0,178.29,178.28,26.0]
[1755865964280,10.0,178.26,178.24,0.1]
[1755865964446,54.7,178.27,178.24,5.71039735]
[1755865964630,10.0,178.31,178.26,5.09216537]
[1755865964837,16.75387882,178.5,178.32,26.0]
[1755865964838,10.0,178.33,178.32,26.0]
[1755865965285,10.0,178.33,178.32,26.66]
[1755865965502,10.0,178.28,178.26,0.66]
[1755865965659,10.0,178.26,178.25,13.59559401]
[1755865965990,10.0,178.25,178.24,0.1]
[1755865966153,10.72,178.25,178.24,0.1]
[1755865966348,10.72,178.25,178.23,0.06]
[1755865966349,10.0,178.24,178.23,0.06]
[1755865966685,60.99648851,178.24,178.23,0.06]
[1755865966871,16.09648851,178.24,178.23,0.06]
[1755865967065,10.72,178.24,178.23,0.06]
[1755865967290,10.0,178.24,178.23,0.06]
[1755865967461,54.96,178.24,178.23,10.76289308]
[1755865967774,10.0,178.24,178.23,0.06]
[1755865967977,54.98,178.24,178.23,0.06]
[1755865968183,55.66,178.24,178.23,0.06]
[1755865968582,55.66,178.24,178.23,8.39132202]
[1755865968758,55.66,178.24,178.23,0.06]
[1755865968964,10.28432314,178.18,178.15,31.86383422]
[1755865969176,0.96432314,178.17,178.15,31.86383422]
[1755865969389,8.61564516,178.18,178.15,31.86383422]
[1755865969390,10.0,178.23,178.15,28.94661291]
[1755865969595,8.33132202,178.2,178.15,28.94661291]
[1755865969877,5.61042843,178.24,178.15,28.94661291]
[1755865970084,45.52,178.23,178.15,28.94661291]
[1755865970286,8.33132202,178.2,178.15,28.94661291]
[1755865970467,8.33132202,178.2,178.14,0.05]
[1755865970886,19.63886576,178.22,178.14,0.05]
[1755865971059,45.78,178.21,178.14,0.05]
[1755865971567,0.28432314,178.18,178.14,0.05]
[1755865971756,0.28432314,178.15,178.14,0.05]
[1755865971954,0.68,178.17,178.14,0.05]
[1755865971955,0.68,178.22,178.14,9.07132202]
[1755865972194,0.68,178.22,178.18,8.33132202]
[1755865972360,0.68,178.22,178.14,0.05]
[1755865972673,13.59559401,178.33,178.17,10.0]
[1755865972871,8.33132202,178.23,178.17,10.0]
[1755865973196,8.33132202,178.18,178.14,45.97]
[1755865973492,8.61564516,178.15,178.14,0.05]
[1755865973698,0.28432314,178.14,178.11,0.184]
[1755865973901,26.28432314,178.12,178.1,45.92]
[1755865974191,0.28432314,178.11,178.04,45.96]
[1755865974389,0.28432314,178.09,178.04,55.96]
[1755865974611,9.01132202,178.08,178.04,45.96]
[1755865974765,0.28432314,178.05,178.02,2.70842986]
[1755865975104,30.54256119,178.03,177.87,16.910459]
[1755865975410,0.28432314,177.93,177.87,10.0]
[1755865975707,13.59559401,178.01,177.88,8.33132202]
[1755865975998,8.33132202,177.97,177.89,21.99]
[1755865976196,0.28432314,178.04,177.89,21.3]
[1755865976380,8.33132202,177.92,177.89,21.3]
[1755865976687,13.59559401,178.0,177.85,10.0]
[1755865976688,0.28432314,177.9,177.85,10.0]
[1755865976889,0.28432314,177.89,177.85,10.0]
[1755865977195,8.33132202,177.98,177.83,57.25]
[1755865977196,0.28432314,177.92,177.86,8.331322]
[1755865977405,26.0,177.93,177.83,10.0]
[1755865977406,0.14216157,177.86,177.83,10.0]
[1755865977611,0.28432314,177.84,177.83,10.0]
[1755865977795,8.61564516,177.84,177.83,10.0]
[1755865978097,0.28432314,177.84,177.83,10.0]
[1755865978398,8.61564516,177.84,177.83,10.0]
[1755865978714,34.61564516,177.84,177.83,10.0]
[1755865978871,26.28432314,177.84,177.83,10.0]
[1755865979074,26.0,177.84,177.83,10.0]
[1755865979389,34.61564516,177.84,177.83,10.0]
[1755865979587,26.28432314,177.84,177.83,10.0]
[1755865979786,0.28432314,177.84,177.83,10.0]
[1755865980007,26.28432314,177.84,177.83,10.0]
[1755865980200,26.0,177.84,177.83,10.0]
[1755865980411,0.14216157,177.87,177.83,10.69]
[1755865980614,0.14216157,177.87,177.83,10.0]
[1755865980917,8.33132202,177.84,177.83,10.0]
[1755865981112,0.14216157,177.87,177.83,10.0]
[1755865981331,0.28432314,177.9,177.83,10.0]
[1755865981484,34.33132202,177.84,177.83,10.0]
[1755865981682,26.28432314,177.84,177.83,10.0]
[1755865981886,34.61564516,177.84,177.83,10.0]
[1755865982686,0.28432314,177.84,177.83,10.0]
[1755865982929,30.49436037,177.91,177.83,10.0]
[1755865983225,8.47348359,177.84,177.83,10.0]
[1755865983401,23.59559401,177.94,177.83,10.0]
[1755865983580,10.0,177.94,177.83,10.0]
[1755865983780,8.33132202,177.98,177.84,0.69]
[1755865984021,8.33132202,177.98,177.84,10.0]
[1755865984225,34.33132202,177.86,177.84,10.0]
[1755865984516,34.33132202,177.86,177.83,57.39]
[1755865984517,8.33132202,177.85,177.83,57.39]
[1755865984723,26.0,177.86,177.83,57.39]
[1755865984926,0.28432314,177.9,177.83,56.7]
[1755865985086,8.61564516,177.84,177.83,56.7]
[1755865985290,26.0,177.84,177.83,57.39]
[1755865985485,26.0,177.84,177.83,56.7]
[1755865985688,34.61564516,177.84,177.83,10.0]
[1755865985893,34.61564516,177.84,177.81,16.916181]
[1755865985894,0.28432314,177.83,177.81,16.916181]
[1755865986216,26.0,177.79,177.77,16.916181]
[1755865986437,26.0,177.75,177.69,10.0]
[1755865986625,8.33132202,177.74,177.7,10.69]
[1755865986790,8.33132202,177.71,177.7,16.923815]
[1755865986994,0.28432314,177.79,177.71,10.0]
[1755865987190,26.0,177.75,177.71,10.0]
[1755865987428,16.923815,177.81,177.75,10.0]
[1755865987752,34.33132202,177.76,177.72,0.69]
[1755865987909,8.33132202,177.73,177.7,10.0]
[1755865988107,8.33132202,177.72,177.7,47.97]
[1755865988308,26.0,177.74,177.7,47.28]
[1755865988544,8.33132202,177.71,177.7,47.28]
[1755865988712,8.61564516,177.71,177.7,47.28]
[1755865989413,0.28432314,177.7,177.68,16.92668]
[1755865989612,0.28432314,177.7,177.65,47.52]
[1755865989824,8.33132202,177.66,177.65,48.21]
[1755865990026,26.0,177.67,177.65,47.52]
[1755865990247,0.68,177.79,177.68,10.0]
[1755865990446,8.33132202,177.77,177.71,10.0]
[1755865990611,0.68,177.78,177.72,47.32]
[1755865990811,0.68,177.78,177.67,10.69]
[1755865990812,8.33132202,177.73,177.67,10.69]
[1755865991036,0.68,177.76,177.67,0.69]
[1755865991245,0.68,177.8,177.71,18.33132202]
[1755865991472,8.33132202,177.77,177.72,9.02132202]
[1755865991611,0.68,177.82,177.74,10.0]
[1755865991812,0.68,177.82,177.68,60.89559401]
[1755865991813,8.33132202,177.8,177.75,66.30132202]
[1755865992026,8.33132202,177.77,177.75,47.28]
[1755865992217,8.33132202,177.76,177.74,47.28]
[1755865992424,8.33132202,177.75,177.69,10.0]
[1755865992655,8.33132202,177.75,177.68,9.02132202]
[1755865992656,8.33132202,177.73,177.7,47.3]
[1755865992947,0.28432314,177.74,177.71,0.69]
[1755865993236,26.0,177.71,177.7,55.69132202]
[1755865993446,8.33132202,177.75,177.7,55.69132202]
[1755865993749,26.0,177.73,177.71,8.33132202]
[1755865993924,26.68,177.83,177.72,19.02132202]
[1755865994111,47.32,177.91,177.7,47.36]
[1755865994112,14.0475504,177.97,177.76,10.0]
[1755865994437,8.33132202,177.85,177.78,10.0]
[1755865994640,0.68,177.89,177.79,10.69]
[1755865994849,0.68,177.94,177.81,18.33132202]
[1755865995152,16.921906,177.91,177.87,8.33132202]
[1755865995366,0.68,177.97,177.88,56.38132202]
[1755865995534,10.0,178.01,177.9,18.33132202]
[1755865995736,10.0,178.01,177.91,48.11]
[1755865995936,8.33132202,178.09,177.91,48.11]
[1755865995937,8.33132202,178.09,177.93,8.33132202]
[1755865996140,10.0,178.04,177.93,18.33132202]
[1755865996336,0.68,178.05,177.96,10.0]
[1755865996337,11.63725903,177.99,177.96,10.0]
[1755865996539,0.68,178.1,177.98,21.63725903]
[1755865996739,11.63725903,178.05,178.01,10.0]
[1755865996963,2.93185119,178.18,178.04,10.0]
[1755865997179,11.63725903,178.09,178.05,48.13]
[1755865997339,11.63725903,178.08,178.05,48.13]
[1755865997539,11.63725903,178.2,178.05,48.13]
[1755865997739,16.898077,178.17,178.07,21.63725903]
[1755865998049,11.63725903,178.09,178.08,0.67]
[1755865998247,11.63725903,178.09,178.08,47.44]
[1755865998460,16.898077,178.17,178.08,48.11]
[1755865998761,0.04,178.17,178.06,16.898077]
[1755865998990,11.63725903,178.2,178.09,47.44]
[1755865999137,11.63725903,178.12,178.09,57.44]
[1755865999335,11.63725903,178.13,178.1,0.67]
[1755865999539,0.04,178.24,178.11,22.30725903]
[1755865999746,5.60853154,178.3,178.12,21.63725903]
[1755865999961,11.63725903,178.17,178.13,0.67]
[1755866000163,11.63725903,178.14,178.13,47.56]
[1755866000365,8.53887112,178.3,178.14,0.67]
[1755866000366,0.04,178.26,178.14,0.67]
[1755866000663,2.97033958,178.3,178.16,21.63725903]
[1755866000860,11.63725903,178.32,178.18,21.63725903]
[1755866001043,16.15753396,178.32,178.19,48.27]
[1755866001250,11.63725903,178.28,178.23,10.0]
[1755866001452,0.04,178.34,178.24,0.67]
[1755866001651,0.03,178.35,178.25,47.64]
[1755866001878,11.63725903,178.31,178.26,0.67]
[1755866002083,0.03,178.35,178.26,11.63725903]
[1755866002385,11.63725903,178.32,178.27,12.30725903]
[1755866002670,0.03,178.35,178.31,11.63725903]
[1755866002887,0.03,178.35,178.33,11.63725903]
[1755866003071,0.03,178.35,178.32,0.67]
[1755866003268,0.03,178.35,178.33,0.67]
[1755866003579,11.63725903,178.34,178.3,0.67]
[1755866003784,0.03,178.37,178.33,11.63725903]
[1755866003997,0.03,178.37,178.33,0.67]
[1755866004183,0.03,178.37,178.34,18.84]
[1755866004358,11.63725903,178.35,178.33,34.48]
[1755866004558,26.0,178.31,178.27,10.67]
[1755866004859,0.03,178.37,178.33,10.0]
[1755866005078,0.03,178.39,178.36,11.63725903]
[1755866005279,0.03,178.39,178.37,59.31725903]
[1755866005487,41.90157865,178.53,178.38,11.63725903]
[1755866005488,11.63725903,178.44,178.38,11.63725903]
[1755866005699,0.2,178.53,178.41,11.63725903]
[1755866005983,0.2,178.53,178.42,47.68]
[1755866005984,0.13,178.51,178.42,47.68]
[1755866006288,11.63725903,178.43,178.42,47.68]
[1755866006594,26.0,178.4,178.35,0.67]
[1755866006889,26.0,178.4,178.35,69.35725903]
[1755866007186,2.84475122,178.51,178.39,21.63725903]
[1755866007512,0.03,178.52,178.36,13.59559401]
[1755866007513,0.03,178.52,178.44,21.63725903]
[1755866007794,0.03,178.52,178.48,10.0]
[1755866007970,0.03,178.52,178.49,10.67]
[1755866008364,0.03,178.52,178.49,17.42]
[1755866008584,0.03,178.52,178.46,26.68]
[1755866008585,13.62559401,178.52,178.46,26.68]
[1755866008786,0.28432314,178.51,178.46,26.68]
[1755866008964,26.0,178.44,178.42,0.67]
[1755866009168,11.63725903,178.43,178.42,47.9]
[1755866009491,11.63725903,178.43,178.42,48.57]
[1755866009665,19.80456982,178.53,178.42,48.57]
[1755866009666,0.03,178.52,178.45,10.0]
[1755866009865,0.03,178.52,178.45,11.63725903]
[1755866010077,0.03,178.52,178.44,10.67]
[1755866010078,0.03,178.52,178.48,10.0]
[1755866010309,0.03,178.52,178.51,11.63725903]
[1755866010598,0.03,178.56,178.55,10.0]
[1755866010798,0.03,178.56,178.55,21.63725903]
[1755866011007,0.03,178.56,178.55,0.67]
[1755866011203,0.03,178.56,178.55,47.96]
[1755866011522,11.66725903,178.56,178.51,0.67]
[1755866011673,26.0,178.55,178.52,47.98]
[1755866011873,11.63725903,178.54,178.52,47.98]
[1755866012276,11.63725903,178.54,178.49,21.63725903]
[1755866012474,26.0,178.5,178.48,40.48]
[1755866012803,0.28432314,178.53,178.46,0.67]
[1755866012979,26.0,178.52,178.49,47.98]
[1755866013286,0.03,178.56,178.51,21.63725903]
[1755866013487,0.03,178.56,178.55,11.63725903]
[1755866013695,0.03,178.57,178.56,10.0]
[1755866013902,0.03,178.57,178.55,48.02]
[1755866014076,0.03,178.57,178.55,58.69]
[1755866014279,26.0,178.53,178.51,10.0]
[1755866014503,26.0,178.53,178.52,58.71]
[1755866014672,0.03,178.57,178.53,10.0]
[1755866014877,11.66725903,178.57,178.52,48.71]
[1755866015076,0.03,178.57,178.53,59.69725903]
[1755866015300,26.0,178.55,178.53,48.06]
[1755866015513,26.0,178.55,178.38,50.46]
[1755866015514,11.63725903,178.54,178.5,10.0]
[1755866015718,26.0,178.5,178.49,10.0]
[1755866016010,0.28432314,178.51,178.44,10.0]
[1755866016210,0.28432314,178.51,178.43,0.67]
[1755866016211,11.63725903,178.45,178.43,0.67]
[1755866016541,26.0,178.47,178.44,45.27]
[1755866016679,0.28432314,178.51,178.45,10.0]
[1755866016883,26.0,178.47,178.46,10.0]
[1755866017087,26.0,178.47,178.46,10.67]
[1755866017504,11.63725903,178.48,178.46,10.0]
[1755866017705,0.28432314,178.46,178.4,10.67]
[1755866017927,37.63725903,178.41,178.38,40.46]
[1755866018134,26.0,178.41,178.4,10.0]
[1755866018305,37.63725903,178.41,178.39,48.22]
[1755866018507,11.63725903,178.4,178.39,48.22]
[1755866018719,11.63725903,178.4,178.36,10.0]
[1755866018720,26.0,178.37,178.33,10.0]
[1755866019033,0.14216157,178.39,178.29,0.67]
[1755866019034,26.0,178.31,178.29,0.67]
[1755866019218,37.63725903,178.31,178.3,48.26]
[1755866019407,37.63725903,178.31,178.3,10.0]
[1755866019747,37.63725903,178.31,178.26,11.63725903]
[1755866019748,26.0,178.29,178.26,10.0]
[1755866019909,26.0,178.29,178.26,10.67]
[1755866020248,11.92158217,178.28,178.26,0.67]
[1755866020548,26.0,178.24,178.2,10.0]
[1755866020701,26.0,178.24,178.23,10.0]
[1755866020899,11.63725903,178.24,178.22,56.88]
[1755866021199,37.63725903,178.23,178.22,48.28]
[1755866021401,37.63725903,178.23,178.21,0.67]
[1755866021402,26.0,178.21,178.2,10.0]
[1755866021637,37.63725903,178.21,178.2,10.0]
[1755866021808,11.63725903,178.21,178.2,58.26]
[1755866022009,11.63725903,178.21,178.16,11.63725903]
[1755866022010,11.92158217,178.21,178.17,10.0]
[1755866022216,37.63725903,178.19,178.16,10.67]
[1755866022411,37.63725903,178.19,178.16,10.0]
[1755866022412,26.0,178.17,178.16,10.0]
[1755866022606,26.0,178.17,178.16,58.24]
[1755866022930,37.63725903,178.17,178.16,58.24]
[1755866023112,26.0,178.17,178.16,58.91]
[1755866023431,26.0,178.17,178.16,58.24]
[1755866023636,37.63725903,178.18,178.17,10.0]
[1755866023803,26.0,178.16,178.15,10.0]
[1755866023997,37.63725903,178.16,178.15,58.2]
[1755866024521,26.0,178.16,178.15,58.87]
[1755866024824,26.0,178.16,178.15,70.50725903]
[1755866025031,0.14216157,178.22,178.18,10.0]
[1755866025200,11.63725903,178.19,178.16,10.0]
[1755866025406,11.63725903,178.22,178.19,10.0]
[1755866025606,26.0,178.2,178.19,10.0]
[1755866025836,11.63725903,178.2,178.19,48.16]
[1755866026130,37.63725903,178.2,178.19,58.16]
[1755866026332,37.63725903,178.2,178.19,58.83]
[1755866026333,26.0,178.2,178.19,58.83]
[1755866026554,11.63725903,178.2,178.17,10.0]
[1755866026717,0.42,178.3,178.19,10.0]
[1755866026919,0.42,178.3,178.18,58.16]
[1755866026920,26.0,178.19,178.18,58.16]
[1755866027140,11.63725903,178.19,178.16,10.06]
[1755866027440,26.0,178.17,178.16,10.06]
[1755866027626,11.63725903,178.17,178.16,0.06]
[1755866028013,37.92158217,178.17,178.16,0.06]
[1755866028215,11.92158217,178.17,178.16,0.06]
[1755866028618,26.0,178.23,178.16,0.06]
[1755866028835,14.01559401,178.26,178.16,0.06]
[1755866028836,11.63725903,178.18,178.16,0.06]
[1755866029139,0.42,178.26,178.16,10.72]
[1755866029317,11.63725903,178.2,178.18,10.0]
[1755866029520,26.0,178.24,178.19,58.24]
[1755866029718,11.63725903,178.2,178.19,58.24]
[1755866030056,11.92158217,178.2,178.16,0.06]
[1755866030226,0.14216157,178.19,178.17,48.24]
[1755866030534,0.28432314,178.19,178.17,48.24]
[1755866030733,0.70432314,178.19,178.16,0.06]
[1755866030937,0.39194794,178.18,178.16,0.06]
[1755866031318,26.0,178.17,178.16,0.06]
[1755866031521,37.92158217,178.17,178.16,0.06]
[1755866031836,11.92158217,178.17,178.16,0.06]
[1755866032012,26.0,178.13,178.09,10.06]
[1755866032207,26.0,178.13,178.1,48.24]
[1755866032413,11.63725903,178.2,178.1,48.24]
[1755866032414,0.28432314,178.15,178.13,10.0]
[1755866032635,11.92158217,178.15,178.14,48.24]
[1755866033350,0.33,178.21,178.14,48.24]
[1755866033520,11.63725903,178.15,178.14,48.24]
[1755866033848,11.92158217,178.15,178.14,48.24]
[1755866034027,26.28432314,178.13,178.12,48.22]
[1755866034237,37.92158217,178.13,178.12,48.22]
[1755866034420,26.0,178.13,178.12,48.88]
[1755866034622,11.63725903,178.13,178.12,48.88]
[1755866034950,11.63725903,178.13,178.12,48.22]
[1755866035153,0.28432314,178.12,178.09,0.06]
[1755866035322,11.63725903,178.1,178.09,10.06]
[1755866035641,11.63725903,178.11,178.1,10.0]
[1755866035847,11.63725903,178.13,178.11,10.0]
[1755866036165,11.63725903,178.12,178.11,10.0]
[1755866036332,26.0,178.14,178.11,10.0]
[1755866036531,11.63725903,178.12,178.11,10.0]
[1755866036722,11.63725903,178.12,178.11,10.66]
[1755866037555,11.63725903,178.16,178.13,10.0]
[1755866037846,11.63725903,178.14,178.1,10.0]
[1755866038043,0.28432314,178.16,178.11,48.14]
[1755866038432,0.28432314,178.16,178.13,10.0]
[1755866038627,26.0,178.19,178.14,10.0]
[1755866038826,0.33,178.18,178.12,10.0]
[1755866039141,0.28432314,178.16,178.13,22.48]
[1755866039446,0.28432314,178.16,178.14,46.06]
[1755866039620,0.61432314,178.16,178.14,46.06]
[1755866040042,0.28432314,178.16,178.14,46.06]
[1755866040359,0.28432314,178.1,178.09,0.06]
[1755866040750,26.0,178.11,178.09,0.06]
[1755866041053,11.63725903,178.1,178.09,0.06]
[1755866041364,0.28432314,178.12,178.09,10.06]
[1755866041589,26.0,178.13,178.11,10.0]
[1755866041772,11.63725903,178.12,178.11,10.0]
[1755866041979,26.0,178.1,178.09,0.06]
[1755866042267,37.92158217,178.1,178.09,48.34]
[1755866042479,26.0,178.1,178.09,59.0]
[1755866042761,26.0,178.11,178.1,10.0]
[1755866043060,37.63725903,178.11,178.1,10.66]
[1755866043232,37.63725903,178.11,178.1,58.98]
[1755866043439,11.63725903,178.11,178.1,58.32]
[1755866043833,0.33,178.18,178.1,58.32]
[1755866043834,11.63725903,178.14,178.11,10.0]
[1755866044070,11.63725903,178.12,178.11,10.0]
[1755866044278,11.63725903,178.12,178.1,58.32]
[1755866044454,11.63725903,178.13,178.11,0.66]
[1755866044778,11.63725903,178.2,178.1,58.32]
[1755866044779,11.63725903,178.17,178.15,10.0]
[1755866044929,11.63725903,178.16,178.12,0.66]
[1755866045132,11.63725903,178.13,178.12,21.84]
[1755866045351,37.92158217,178.13,178.12,21.84]
[1755866046085,26.28432314,178.1,178.09,0.06]
[1755866046361,11.92158217,178.1,178.09,0.06]
[1755866046605,51.51717618,178.1,178.09,0.06]
[1755866046737,25.51717618,178.1,178.09,0.06]
[1755866047170,6.13313029,178.19,178.09,0.06]
[1755866047171,26.0,178.13,178.09,0.06]
[1755866047363,11.63725903,178.1,178.09,0.06]
[1755866047662,37.92158217,178.1,178.09,0.06]
[1755866048356,51.51717618,178.1,178.09,0.06]
[1755866048553,11.92158217,178.1,178.09,0.06]
[1755866048755,26.0,178.1,178.09,0.72]
[1755866048963,37.63725903,178.1,178.09,0.72]
[1755866049345,26.0,178.1,178.09,10.72]
[1755866049759,13.59559401,178.17,178.09,10.72]
[1755866049760,13.59559401,178.17,178.12,10.0]
[1755866049977,11.63725903,178.14,178.13,49.22]
[1755866050161,0.03,178.18,178.13,49.22]
[1755866050476,11.66725903,178.18,178.16,10.0]
[1755866050690,11.63725903,178.17,178.16,10.0]
[1755866050887,37.63725903,178.17,178.16,10.0]
[1755866051175,11.63725903,178.17,178.16,58.54]
[1755866051380,0.03,178.18,178.16,59.2]
[1755866051683,11.66725903,178.18,178.17,10.66]
[1755866051855,0.03,178.18,178.17,0.66]
[1755866052174,11.66725903,178.18,178.17,10.66]
[1755866052379,37.66725903,178.18,178.17,10.66]
[1755866052582,37.66725903,178.18,178.16,58.54]
[1755866052768,11.63725903,178.17,178.16,48.54]
[1755866052972,26.28432314,178.17,178.16,58.54]
[1755866053162,37.63725903,178.17,178.16,59.2]
[1755866053354,37.63725903,178.17,178.14,10.0]
[1755866053559,11.63725903,178.15,178.14,58.48]
[1755866054058,26.03,178.18,178.17,10.0]
[1755866054271,11.66725903,178.18,178.17,10.66]
[1755866054473,0.03,178.18,178.17,10.66]
[1755866054878,13.59559401,178.29,178.23,10.0]
[1755866055065,11.63725903,178.24,178.23,10.0]
[1755866055255,11.92158217,178.24,178.23,58.54]
[1755866055463,0.14216157,178.23,178.2,10.0]
[1755866055773,0.28432314,178.23,178.22,48.54]
[1755866056480,26.28432314,178.23,178.22,48.54]
[1755866056655,29.87246282,178.23,178.22,48.54]
[1755866056862,41.50972185,178.23,178.22,48.54]
[1755866057058,55.10531586,178.23,178.22,48.54]
[1755866057260,41.50972185,178.23,178.22,48.54]
[1755866057968,41.22539871,178.23,178.22,48.54]
[1755866058281,41.22539871,178.23,178.22,59.2]
[1755866058488,41.50972185,178.23,178.22,48.54]
[1755866058783,41.50972185,178.23,178.14,48.56]
[1755866058784,26.0,178.16,178.14,48.56]
[1755866059138,26.0,178.16,178.15,10.0]
[1755866059256,132.4,178.25,178.16,10.0]
[1755866059257,11.63725903,178.17,178.16,10.0]
[1755866059457,15.24963378,178.17,178.16,10.66]
[1755866059674,3.61237475,178.17,178.16,10.66]
[1755866059857,3.61237475,178.17,178.16,0.66]
[1755866060058,3.61237475,178.17,178.16,10.66]
[1755866060311,15.24963378,178.17,178.16,10.0]